[Event "Titled Tuesday Blitz November 08 Early 2022"]
[White "Harsha Bharathakoti"]
[Black "Firouzja, Alireza"]
[WhiteFideId "5078776"]
[BlackFideId "12573981"]
[WhiteElo "2523"]
[BlackElo "2903"]
[Result "1-0"]
[Round "05"]
[TimeControl "180+1"]
[Date "2022.11.08"]
[WhiteClock "0:00:08"]
[BlackClock "0:00:02"]

1. Nf3 {[%clk 0:02:58]}  c5 {[%clk 0:02:59]} 2. c4 {[%clk 0:02:58]}  g6 {[%clk 0:02:59]} 3. e4 {[%clk 0:02:58]}  Bg7 {[%clk 0:02:57]} 4. d4 {[%clk 0:02:58]}  cxd4 {[%clk 0:02:56]} 5. Nxd4 {[%clk 0:02:59]}  Nc6 {[%clk 0:02:56]} 6. Be3 {[%clk 0:02:59]}  Qb6 {[%clk 0:02:52]} 7. Nb3 {[%clk 0:02:45]}  Qd8 {[%clk 0:02:51]} 8. Nc3 {[%clk 0:02:38]}  Bxc3+ {[%clk 0:02:37]} 9. bxc3 {[%clk 0:02:39]}  Nf6 {[%clk 0:02:38]} 10. f3 {[%clk 0:02:33]}  O-O {[%clk 0:02:38]} 11. c5 {[%clk 0:02:17]}  b6 {[%clk 0:02:37]} 12. cxb6 {[%clk 0:02:05]}  axb6 {[%clk 0:02:36]} 13. c4 {[%clk 0:02:04]}  Ba6 {[%clk 0:02:31]} 14. Be2 {[%clk 0:01:59]}  d6 {[%clk 0:02:29]} 15. O-O {[%clk 0:01:56]}  Rc8 {[%clk 0:02:29]} 16. Rc1 {[%clk 0:01:50]}  Ne5 {[%clk 0:02:28]} 17. Qd4 {[%clk 0:01:47]}  Qc7 {[%clk 0:02:19]} 18. Qxb6 {[%clk 0:01:16]}  Qxb6 {[%clk 0:02:16]} 19. Bxb6 {[%clk 0:01:17]}  Bxc4 {[%clk 0:02:17]} 20. Bxc4 {[%clk 0:01:14]}  Nxc4 {[%clk 0:02:11]} 21. Bd4 {[%clk 0:01:14]}  e5 {[%clk 0:02:11]} 22. Bf2 {[%clk 0:01:13]}  d5 {[%clk 0:02:09]} 23. exd5 {[%clk 0:01:11]}  Nxd5 {[%clk 0:02:09]} 24. Bc5 {[%clk 0:01:12]}  Nce3 {[%clk 0:01:26]} 25. Bxf8 {[%clk 0:01:08]}  Rxf8 {[%clk 0:01:27]} 26. Rf2 {[%clk 0:01:07]}  Ra8 {[%clk 0:01:28]} 27. Nc5 {[%clk 0:01:01]}  Nf4 {[%clk 0:01:19]} 28. Rd2 {[%clk 0:00:57]}  Kg7 {[%clk 0:01:16]} 29. a4 {[%clk 0:00:55]}  Ra5 {[%clk 0:01:12]} 30. g3 {[%clk 0:00:52]}  Nh3+ {[%clk 0:01:08]} 31. Kh1 {[%clk 0:00:52]}  Ng5 {[%clk 0:01:09]} 32. Rd3 {[%clk 0:00:48]}  Nf5 {[%clk 0:01:03]} 33. f4 {[%clk 0:00:44]}  exf4 {[%clk 0:00:11]} 34. gxf4 {[%clk 0:00:44]}  Ne6 {[%clk 0:00:12]} 35. Nxe6+ {[%clk 0:00:44]}  fxe6 {[%clk 0:00:13]} 36. Rc4 {[%clk 0:00:43]}  Kf6 {[%clk 0:00:12]} 37. Rb3 {[%clk 0:00:34]}  Rd5 {[%clk 0:00:12]} 38. Ra3 {[%clk 0:00:32]}  Ra5 {[%clk 0:00:12]} 39. Rb4 {[%clk 0:00:28]}  Nd6 {[%clk 0:00:13]} 40. Kg2 {[%clk 0:00:29]}  g5 {[%clk 0:00:12]} 41. Kf3 {[%clk 0:00:23]}  gxf4 {[%clk 0:00:11]} 42. Rxf4+ {[%clk 0:00:24]}  Ke7 {[%clk 0:00:11]} 43. Rh4 {[%clk 0:00:23]}  h5 {[%clk 0:00:11]} 44. Ke2 {[%clk 0:00:18]}  Nf5 {[%clk 0:00:10]} 45. Rb4 {[%clk 0:00:17]}  e5 {[%clk 0:00:10]} 46. Kd3 {[%clk 0:00:17]}  Nd6 {[%clk 0:00:10]} 47. Kc3 {[%clk 0:00:14]}  e4 {[%clk 0:00:09]} 48. Kd4 {[%clk 0:00:11]}  Ke6 {[%clk 0:00:08]} 49. Rb6 {[%clk 0:00:09]}  Rd5+ {[%clk 0:00:08]} 50. Ke3 {[%clk 0:00:09]}  Ke5 {[%clk 0:00:09]} 51. Rb4 {[%clk 0:00:08]}  Nf5+ {[%clk 0:00:08]} 52. Ke2 {[%clk 0:00:08]}  Nd4+ {[%clk 0:00:07]} 53. Rxd4 {[%clk 0:00:06]}  Rxd4 {[%clk 0:00:05]} 54. a5 {[%clk 0:00:07]}  Rd7 {[%clk 0:00:04]} 55. a6 {[%clk 0:00:07]}  Ra7 {[%clk 0:00:05]} 56. Ke3 {[%clk 0:00:08]}  Kf5 {[%clk 0:00:05]} 57. Ra5+ {[%clk 0:00:06]}  Kg4 {[%clk 0:00:05]} 58. Kxe4 {[%clk 0:00:07]}  h4 {[%clk 0:00:03]} 59. Ra3 {[%clk 0:00:07]}  h3 {[%clk 0:00:01]} 60. Kd5 {[%clk 0:00:07]}  Rd7+ {[%clk 0:00:01]} 61. Kc6 {[%clk 0:00:07]}  Ra7 {[%clk 0:00:02]} 62. Kb6 {[%clk 0:00:07]}  Ra8 {[%clk 0:00:02]} 63. a7 {[%clk 0:00:08]} 1-0


[Site "https://www.chess.com"]

[Event "Titled Tuesday Blitz November 08 Early 2022"]
[White "Hernandez Gonzalez, William"]
[Black "Begunov, Konstantin"]
[WhiteFideId "3509915"]
[BlackFideId "4118510"]
[WhiteElo "2374"]
[BlackElo "2140"]
[Result "1-0"]
[Round "05"]
[TimeControl "180+1"]
[Date "2022.11.09"]
[WhiteClock "0:01:11"]
[BlackClock "0:00:47"]

1. e4 {[%clk 0:03:00]}  c5 {[%clk 0:02:59]} 2. Nf3 {[%clk 0:03:00]}  d6 {[%clk 0:03:00]} 3. d4 {[%clk 0:03:00]}  cxd4 {[%clk 0:03:01]} 4. Nxd4 {[%clk 0:03:00]}  Nf6 {[%clk 0:03:02]} 5. Nc3 {[%clk 0:03:01]}  a6 {[%clk 0:03:02]} 6. Bg5 {[%clk 0:03:01]}  e6 {[%clk 0:03:02]} 7. f4 {[%clk 0:03:01]}  Qb6 {[%clk 0:03:03]} 8. Qd2 {[%clk 0:03:01]}  Nc6 {[%clk 0:03:03]} 9. Nb3 {[%clk 0:02:54]}  Be7 {[%clk 0:03:03]} 10. O-O-O {[%clk 0:02:52]}  Qc7 {[%clk 0:03:00]} 11. g4 {[%clk 0:02:42]}  b5 {[%clk 0:02:54]} 12. Bxf6 {[%clk 0:02:42]}  gxf6 {[%clk 0:02:51]} 13. Kb1 {[%clk 0:02:28]}  Bb7 {[%clk 0:02:50]} 14. Ne2 {[%clk 0:02:17]}  a5 {[%clk 0:02:38]} 15. Ng3 {[%clk 0:02:16]}  a4 {[%clk 0:02:24]} 16. Nd4 {[%clk 0:02:14]}  Nxd4 {[%clk 0:02:23]} 17. Qxd4 {[%clk 0:02:15]}  Bc6 {[%clk 0:02:05]} 18. Nh5 {[%clk 0:02:13]}  Qb7 {[%clk 0:02:02]} 19. Nxf6+ {[%clk 0:02:06]}  Bxf6 {[%clk 0:01:34]} 20. Qxf6 {[%clk 0:02:07]}  Rf8 {[%clk 0:01:34]} 21. Bd3 {[%clk 0:01:55]}  Bxe4 {[%clk 0:01:29]} 22. Rhe1 {[%clk 0:01:54]}  Bxd3 {[%clk 0:01:24]} 23. Rxd3 {[%clk 0:01:55]}  Kd7 {[%clk 0:01:08]} 24. f5 {[%clk 0:01:48]}  Rae8 {[%clk 0:01:06]} 25. Red1 {[%clk 0:01:46]}  d5 {[%clk 0:01:03]} 26. Qe5 {[%clk 0:01:37]}  Qc6 {[%clk 0:01:00]} 27. Qe2 {[%clk 0:01:29]}  Rc8 {[%clk 0:00:55]} 28. Rc3 {[%clk 0:01:22]}  Qd6 {[%clk 0:00:54]} 29. Qxb5+ {[%clk 0:01:22]}  Ke7 {[%clk 0:00:52]} 30. Qb7+ {[%clk 0:01:16]}  Kf6 {[%clk 0:00:51]} 31. Rxc8 {[%clk 0:01:15]}  Rxc8 {[%clk 0:00:47]} 32. Qxc8 {[%clk 0:01:15]}  a3 {[%clk 0:00:47]} 33. Qc3+ {[%clk 0:01:11]} 1-0


[Site "https://www.chess.com"]

[Event "Titled Tuesday Blitz November 08 Early 2022"]
[White "Howell, David W L"]
[Black "Ladan, Nicholas"]
[WhiteFideId "410608"]
[BlackFideId "30918855"]
[WhiteElo "2567"]
[BlackElo "2167"]
[Result "1-0"]
[Round "05"]
[TimeControl "180+1"]
[Date "2022.11.09"]
[WhiteClock "0:00:52"]
[BlackClock "0:00:50"]

1. d4 {[%clk 0:03:00]}  d5 {[%clk 0:03:00]} 2. Bg5 {[%clk 0:02:59]}  Nf6 {[%clk 0:02:52]} 3. e3 {[%clk 0:02:53]}  Ne4 {[%clk 0:02:48]} 4. Bf4 {[%clk 0:02:52]}  g5 {[%clk 0:02:43]} 5. Be5 {[%clk 0:02:42]}  Rg8 {[%clk 0:02:29]} 6. Bd3 {[%clk 0:02:34]}  Nd7 {[%clk 0:02:26]} 7. Bxe4 {[%clk 0:02:27]}  dxe4 {[%clk 0:02:20]} 8. Bg3 {[%clk 0:02:27]}  Nf6 {[%clk 0:02:15]} 9. Nc3 {[%clk 0:02:19]}  Bg4 {[%clk 0:02:05]} 10. Nge2 {[%clk 0:02:06]}  Qd7 {[%clk 0:02:01]} 11. h3 {[%clk 0:02:04]}  Bh5 {[%clk 0:01:59]} 12. Qd2 {[%clk 0:01:48]}  O-O-O {[%clk 0:01:57]} 13. O-O-O {[%clk 0:01:47]}  Nd5 {[%clk 0:01:51]} 14. Nxe4 {[%clk 0:01:43]}  Qa4 {[%clk 0:01:42]} 15. Kb1 {[%clk 0:01:32]}  Nb4 {[%clk 0:01:24]} 16. N2c3 {[%clk 0:01:09]}  Qa5 {[%clk 0:01:06]} 17. f3 {[%clk 0:00:59]}  e6 {[%clk 0:00:52]} 18. a3 {[%clk 0:00:56]}  Nd5 {[%clk 0:00:49]} 19. Nxd5 {[%clk 0:00:54]}  Qxd5 {[%clk 0:00:50]} 20. Nf6 {[%clk 0:00:52]} 1-0


[Site "https://www.chess.com"]

[Event "Titled Tuesday Blitz November 08 Early 2022"]
[White "Kamsky, Gata"]
[Black "Nouri, Alekhine"]
[WhiteFideId "2000024"]
[BlackFideId "5216184"]
[WhiteElo "2666"]
[BlackElo "2151"]
[Result "1-0"]
[Round "05"]
[TimeControl "180+1"]
[Date "2022.11.08"]
[WhiteClock "0:00:20"]
[BlackClock "0:00:02"]

1. e4 {[%clk 0:03:00]}  c5 {[%clk 0:02:49]} 2. Nc3 {[%clk 0:02:58]}  Nc6 {[%clk 0:02:45]} 3. Bc4 {[%clk 0:02:56]}  d6 {[%clk 0:02:45]} 4. Nf3 {[%clk 0:02:55]}  Nf6 {[%clk 0:02:45]} 5. h3 {[%clk 0:02:54]}  a6 {[%clk 0:02:45]} 6. a3 {[%clk 0:02:54]}  e6 {[%clk 0:02:45]} 7. Ba2 {[%clk 0:02:53]}  Be7 {[%clk 0:02:45]} 8. O-O {[%clk 0:02:52]}  O-O {[%clk 0:02:45]} 9. d3 {[%clk 0:02:52]}  b5 {[%clk 0:02:45]} 10. Ne2 {[%clk 0:02:52]}  Bb7 {[%clk 0:02:45]} 11. Ng3 {[%clk 0:02:52]}  Rc8 {[%clk 0:02:46]} 12. Re1 {[%clk 0:02:52]}  h6 {[%clk 0:02:45]} 13. Bf4 {[%clk 0:02:49]}  Nd7 {[%clk 0:02:43]} 14. c3 {[%clk 0:02:36]}  Nde5 {[%clk 0:02:42]} 15. Nxe5 {[%clk 0:02:33]}  dxe5 {[%clk 0:02:42]} 16. Be3 {[%clk 0:02:32]}  b4 {[%clk 0:02:35]} 17. a4 {[%clk 0:02:17]}  Na5 {[%clk 0:02:33]} 18. Nf1 {[%clk 0:01:57]}  Bc6 {[%clk 0:02:18]} 19. Qc2 {[%clk 0:01:52]}  b3 {[%clk 0:02:10]} 20. Bxb3 {[%clk 0:01:51]}  Nxb3 {[%clk 0:02:11]} 21. Qxb3 {[%clk 0:01:51]}  Qxd3 {[%clk 0:02:08]} 22. f3 {[%clk 0:01:46]}  Rb8 {[%clk 0:02:02]} 23. Qa2 {[%clk 0:01:45]}  Rfd8 {[%clk 0:01:57]} 24. Rac1 {[%clk 0:01:40]}  Rb7 {[%clk 0:01:37]} 25. b3 {[%clk 0:01:31]}  Qd6 {[%clk 0:01:29]} 26. Nd2 {[%clk 0:01:28]}  Qb8 {[%clk 0:01:27]} 27. Qc2 {[%clk 0:01:25]}  Bh4 {[%clk 0:00:55]} 28. Rf1 {[%clk 0:01:16]}  Be7 {[%clk 0:00:47]} 29. Rb1 {[%clk 0:01:15]}  Qc7 {[%clk 0:00:28]} 30. Nc4 {[%clk 0:01:12]}  Rdb8 {[%clk 0:00:27]} 31. Qa2 {[%clk 0:01:06]}  a5 {[%clk 0:00:26]} 32. Rfd1 {[%clk 0:01:04]}  f5 {[%clk 0:00:25]} 33. Qc2 {[%clk 0:00:59]}  Rf8 {[%clk 0:00:18]} 34. Kh1 {[%clk 0:00:43]}  g6 {[%clk 0:00:12]} 35. Bxh6 {[%clk 0:00:41]}  Rf7 {[%clk 0:00:13]} 36. Be3 {[%clk 0:00:42]}  Rh7 {[%clk 0:00:13]} 37. Bf2 {[%clk 0:00:38]}  Kf7 {[%clk 0:00:12]} 38. Kg1 {[%clk 0:00:37]}  Rb8 {[%clk 0:00:10]} 39. Bg3 {[%clk 0:00:37]}  Bf6 {[%clk 0:00:10]} 40. Rd6 {[%clk 0:00:34]}  f4 {[%clk 0:00:07]} 41. Bf2 {[%clk 0:00:34]}  Rhh8 {[%clk 0:00:07]} 42. Rbd1 {[%clk 0:00:32]}  Rhd8 {[%clk 0:00:07]} 43. Bxc5 {[%clk 0:00:28]}  Bxa4 {[%clk 0:00:07]} 44. Bb6 {[%clk 0:00:23]}  Rxb6 {[%clk 0:00:06]} 45. Rxb6 {[%clk 0:00:21]}  Qxc4 {[%clk 0:00:06]} 46. Rb7+ {[%clk 0:00:20]}  Be7 {[%clk 0:00:04]} 47. Rxd8 {[%clk 0:00:20]}  Qc5+ {[%clk 0:00:03]} 48. Qf2 {[%clk 0:00:20]}  Qc6 {[%clk 0:00:02]} 49. Rxe7+ {[%clk 0:00:19]}  Kxe7 {[%clk 0:00:02]} 50. Qh4+ {[%clk 0:00:18]}  Kf7 {[%clk 0:00:02]} 51. Qh7+ {[%clk 0:00:18]}  Kf6 {[%clk 0:00:02]} 52. Rf8+ {[%clk 0:00:19]}  Kg5 {[%clk 0:00:02]} 53. h4# {[%clk 0:00:20]} 1-0


[Site "https://www.chess.com"]

[Event "Titled Tuesday Blitz November 08 Early 2022"]
[White "Kis, Lorand Bela"]
[Black "Miszler, Levente"]
[WhiteFideId "2024098"]
[BlackFideId "763276"]
[WhiteElo "2085"]
[BlackElo "2176"]
[Result "0-1"]
[Round "05"]
[TimeControl "180+1"]
[Date "2022.11.09"]
[WhiteClock "0:00:03"]
[BlackClock "0:01:30"]

1. Nf3 {[%clk 0:03:00]}  Nf6 {[%clk 0:02:55]} 2. g3 {[%clk 0:03:00]}  g6 {[%clk 0:02:52]} 3. Bg2 {[%clk 0:03:00]}  Bg7 {[%clk 0:02:52]} 4. O-O {[%clk 0:03:01]}  O-O {[%clk 0:02:51]} 5. c4 {[%clk 0:03:01]}  c5 {[%clk 0:02:50]} 6. Nc3 {[%clk 0:03:01]}  Nc6 {[%clk 0:02:50]} 7. d3 {[%clk 0:03:02]}  d6 {[%clk 0:02:47]} 8. a3 {[%clk 0:03:02]}  a6 {[%clk 0:02:46]} 9. Rb1 {[%clk 0:03:02]}  Rb8 {[%clk 0:02:43]} 10. b4 {[%clk 0:03:03]}  cxb4 {[%clk 0:02:44]} 11. axb4 {[%clk 0:03:03]}  b5 {[%clk 0:02:45]} 12. cxb5 {[%clk 0:02:40]}  axb5 {[%clk 0:02:45]} 13. h3 {[%clk 0:02:06]}  Bb7 {[%clk 0:02:43]} 14. Nxb5 {[%clk 0:01:51]}  Nd5 {[%clk 0:02:37]} 15. e4 {[%clk 0:01:23]}  Ndxb4 {[%clk 0:02:33]} 16. Nfd4 {[%clk 0:00:48]}  Ba6 {[%clk 0:02:17]} 17. Nxc6 {[%clk 0:00:28]}  Nxc6 {[%clk 0:02:17]} 18. Na3 {[%clk 0:00:23]}  Rxb1 {[%clk 0:02:07]} 19. Nxb1 {[%clk 0:00:24]}  Nb4 {[%clk 0:02:08]} 20. d4 {[%clk 0:00:20]}  Bxf1 {[%clk 0:02:07]} 21. Bxf1 {[%clk 0:00:21]}  Qc7 {[%clk 0:02:04]} 22. Be3 {[%clk 0:00:17]}  Qc2 {[%clk 0:02:01]} 23. Qxc2 {[%clk 0:00:14]}  Nxc2 {[%clk 0:02:01]} 24. Nc3 {[%clk 0:00:14]}  Nxe3 {[%clk 0:02:01]} 25. fxe3 {[%clk 0:00:14]}  e6 {[%clk 0:01:57]} 26. Kf2 {[%clk 0:00:14]}  Rc8 {[%clk 0:01:57]} 27. Nb5 {[%clk 0:00:14]}  Bf8 {[%clk 0:01:56]} 28. Kf3 {[%clk 0:00:13]}  Rc2 {[%clk 0:01:48]} 29. Be2 {[%clk 0:00:13]}  h5 {[%clk 0:01:42]} 30. h4 {[%clk 0:00:13]}  Kg7 {[%clk 0:01:41]} 31. Na3 {[%clk 0:00:11]}  Ra2 {[%clk 0:01:39]} 32. Nb5 {[%clk 0:00:12]}  f5 {[%clk 0:01:34]} 33. exf5 {[%clk 0:00:11]}  gxf5 {[%clk 0:01:35]} 34. Nc3 {[%clk 0:00:10]}  Rc2 {[%clk 0:01:33]} 35. Nb5 {[%clk 0:00:10]}  e5 {[%clk 0:01:32]} 36. dxe5 {[%clk 0:00:03]}  dxe5 {[%clk 0:01:33]} 37. e4 {[%clk 0:00:03]}  fxe4+ {[%clk 0:01:31]} 38. Ke3 {[%clk 0:00:03]}  Bc5+ {[%clk 0:01:30]} 0-1


[Site "https://www.chess.com"]

[Event "Titled Tuesday Blitz November 08 Early 2022"]
[White "Kodinets, Konstantin L."]
[Black "Trifan, Andrei Ioan"]
[WhiteFideId "4122011"]
[BlackFideId "12967068"]
[WhiteElo "2447"]
[BlackElo "2208"]
[Result "0-1"]
[Round "05"]
[TimeControl "180+1"]
[Date "2022.11.09"]
[WhiteClock "0:00:42"]
[BlackClock "0:00:56"]

1. d4 {[%clk 0:03:00]}  Nf6 {[%clk 0:02:58]} 2. Nf3 {[%clk 0:03:01]}  g6 {[%clk 0:02:58]} 3. Bg5 {[%clk 0:03:01]}  Bg7 {[%clk 0:02:56]} 4. Nbd2 {[%clk 0:03:02]}  d6 {[%clk 0:02:52]} 5. e4 {[%clk 0:03:02]}  O-O {[%clk 0:02:52]} 6. c3 {[%clk 0:03:02]}  Nbd7 {[%clk 0:02:51]} 7. Bc4 {[%clk 0:03:01]}  e5 {[%clk 0:02:51]} 8. dxe5 {[%clk 0:03:02]}  Nxe5 {[%clk 0:02:49]} 9. Nxe5 {[%clk 0:03:02]}  dxe5 {[%clk 0:02:50]} 10. O-O {[%clk 0:03:03]}  h6 {[%clk 0:02:49]} 11. Bh4 {[%clk 0:03:02]}  c6 {[%clk 0:02:47]} 12. a4 {[%clk 0:03:01]}  a5 {[%clk 0:02:43]} 13. Qc2 {[%clk 0:03:00]}  Qb6 {[%clk 0:02:39]} 14. Kh1 {[%clk 0:02:38]}  Re8 {[%clk 0:02:26]} 15. f3 {[%clk 0:02:38]}  Nh5 {[%clk 0:02:22]} 16. Bf2 {[%clk 0:02:38]}  Qc7 {[%clk 0:02:23]} 17. Qb3 {[%clk 0:02:35]}  Nf4 {[%clk 0:02:22]} 18. Rfd1 {[%clk 0:02:22]}  Be6 {[%clk 0:02:07]} 19. Bxe6 {[%clk 0:02:20]}  Nxe6 {[%clk 0:02:08]} 20. Nc4 {[%clk 0:02:20]}  Reb8 {[%clk 0:02:02]} 21. Bb6 {[%clk 0:02:08]}  Qe7 {[%clk 0:02:02]} 22. Qa3 {[%clk 0:02:02]}  Qg5 {[%clk 0:01:55]} 23. Rd7 {[%clk 0:01:32]}  Nf4 {[%clk 0:01:50]} 24. g3 {[%clk 0:01:32]}  Qh5 {[%clk 0:01:47]} 25. Rf1 {[%clk 0:01:26]}  Qh3 {[%clk 0:01:39]} 26. Rf2 {[%clk 0:01:26]}  Qxd7 {[%clk 0:01:27]} 27. gxf4 {[%clk 0:01:25]}  exf4 {[%clk 0:01:24]} 28. Kg2 {[%clk 0:01:14]}  Qe6 {[%clk 0:01:19]} 29. Nxa5 {[%clk 0:01:05]}  c5 {[%clk 0:01:11]} 30. b4 {[%clk 0:00:51]}  Qxb6 {[%clk 0:01:08]} 31. Nc4 {[%clk 0:00:50]}  cxb4 {[%clk 0:01:01]} 32. cxb4 {[%clk 0:00:49]}  Qc6 {[%clk 0:01:00]} 33. Na5 {[%clk 0:00:48]}  Qc3 {[%clk 0:00:57]} 34. Qa2 {[%clk 0:00:42]}  Qxb4 {[%clk 0:00:56]} 0-1


[Site "https://www.chess.com"]

[Event "Titled Tuesday Blitz November 08 Early 2022"]
[White "Kopacz, Grzegorz"]
[Black "Raahul V S"]
[WhiteFideId "1109880"]
[BlackFideId "25035525"]
[WhiteElo "2037"]
[BlackElo "2233"]
[Result "0-1"]
[Round "05"]
[TimeControl "180+1"]
[Date "2022.11.09"]
[WhiteClock "0:00:29"]
[BlackClock "0:01:15"]

1. c4 {[%clk 0:03:00]}  f5 {[%clk 0:02:56]} 2. Nc3 {[%clk 0:02:59]}  Nf6 {[%clk 0:02:56]} 3. g3 {[%clk 0:02:59]}  e6 {[%clk 0:02:55]} 4. Bg2 {[%clk 0:02:59]}  d5 {[%clk 0:02:55]} 5. d4 {[%clk 0:02:56]}  c6 {[%clk 0:02:52]} 6. b3 {[%clk 0:02:56]}  Bd6 {[%clk 0:02:52]} 7. Nf3 {[%clk 0:02:55]}  O-O {[%clk 0:02:52]} 8. O-O {[%clk 0:02:54]}  Nbd7 {[%clk 0:02:50]} 9. Bf4 {[%clk 0:02:41]}  Qe7 {[%clk 0:02:38]} 10. Bxd6 {[%clk 0:02:27]}  Qxd6 {[%clk 0:02:37]} 11. e3 {[%clk 0:02:23]}  Ne4 {[%clk 0:02:32]} 12. Qc2 {[%clk 0:02:15]}  b6 {[%clk 0:02:29]} 13. cxd5 {[%clk 0:02:03]}  exd5 {[%clk 0:02:27]} 14. Nxe4 {[%clk 0:02:00]}  fxe4 {[%clk 0:02:25]} 15. Ne5 {[%clk 0:02:00]}  Nxe5 {[%clk 0:02:17]} 16. dxe5 {[%clk 0:01:59]}  Qe6 {[%clk 0:02:18]} 17. Qc3 {[%clk 0:01:48]}  Bb7 {[%clk 0:02:16]} 18. f4 {[%clk 0:01:39]}  exf3 {[%clk 0:02:14]} 19. Rxf3 {[%clk 0:01:39]}  c5 {[%clk 0:02:12]} 20. Rxf8+ {[%clk 0:01:35]}  Rxf8 {[%clk 0:02:10]} 21. b4 {[%clk 0:01:24]}  cxb4 {[%clk 0:01:48]} 22. Qxb4 {[%clk 0:01:08]}  Qxe5 {[%clk 0:01:45]} 23. Qd4 {[%clk 0:01:08]}  Re8 {[%clk 0:01:43]} 24. Qxe5 {[%clk 0:01:05]}  Rxe5 {[%clk 0:01:43]} 25. Kf2 {[%clk 0:01:06]}  Kf7 {[%clk 0:01:43]} 26. Rc1 {[%clk 0:01:05]}  Re7 {[%clk 0:01:42]} 27. a3 {[%clk 0:01:03]}  Ke6 {[%clk 0:01:41]} 28. Ke1 {[%clk 0:00:59]}  Kd6 {[%clk 0:01:40]} 29. Kd2 {[%clk 0:00:55]}  Rf7 {[%clk 0:01:38]} 30. Rf1 {[%clk 0:00:50]}  Rxf1 {[%clk 0:01:34]} 31. Bxf1 {[%clk 0:00:50]}  Ke5 {[%clk 0:01:35]} 32. Bg2 {[%clk 0:00:47]}  Bc8 {[%clk 0:01:33]} 33. Kc3 {[%clk 0:00:46]}  Bf5 {[%clk 0:01:32]} 34. Kb4 {[%clk 0:00:46]}  Bd3 {[%clk 0:01:18]} 35. Bf3 {[%clk 0:00:43]}  d4 {[%clk 0:01:17]} 36. exd4+ {[%clk 0:00:43]}  Kxd4 {[%clk 0:01:18]} 37. Bc6 {[%clk 0:00:36]}  Ke3 {[%clk 0:01:16]} 38. Bb5 {[%clk 0:00:31]}  a5+ {[%clk 0:01:15]} 39. Ka4 {[%clk 0:00:29]}  Bc2# {[%clk 0:01:15]} 0-1


[Site "https://www.chess.com"]

[Event "Titled Tuesday Blitz November 08 Early 2022"]
[White "Krysa, Leandro"]
[Black "Baches Garcia, Guillermo"]
[WhiteFideId "116807"]
[BlackFideId "2209764"]
[WhiteElo "2485"]
[BlackElo "2462"]
[Result "1/2-1/2"]
[Round "05"]
[TimeControl "180+1"]
[Date "2022.11.09"]
[WhiteClock "0:00:52"]
[BlackClock "0:00:13"]

1. e4 {[%clk 0:03:00]}  c5 {[%clk 0:03:00]} 2. Nf3 {[%clk 0:03:00]}  d6 {[%clk 0:03:00]} 3. d4 {[%clk 0:03:00]}  cxd4 {[%clk 0:03:01]} 4. Nxd4 {[%clk 0:03:01]}  Nf6 {[%clk 0:03:02]} 5. Nc3 {[%clk 0:03:02]}  Nc6 {[%clk 0:03:02]} 6. Bg5 {[%clk 0:03:00]}  e6 {[%clk 0:03:02]} 7. Qd2 {[%clk 0:03:00]}  h6 {[%clk 0:03:03]} 8. Bxf6 {[%clk 0:02:51]}  gxf6 {[%clk 0:03:04]} 9. O-O-O {[%clk 0:02:50]}  a6 {[%clk 0:03:04]} 10. f4 {[%clk 0:02:49]}  Bd7 {[%clk 0:03:04]} 11. Kb1 {[%clk 0:02:40]}  Qb6 {[%clk 0:03:03]} 12. Nf3 {[%clk 0:02:37]}  O-O-O {[%clk 0:03:02]} 13. g3 {[%clk 0:02:32]}  Be7 {[%clk 0:03:00]} 14. f5 {[%clk 0:02:32]}  Kb8 {[%clk 0:02:52]} 15. Bh3 {[%clk 0:02:30]}  Ne5 {[%clk 0:02:38]} 16. Qd4 {[%clk 0:02:14]}  Qc7 {[%clk 0:02:01]} 17. Rhf1 {[%clk 0:02:09]}  Nxf3 {[%clk 0:01:44]} 18. Rxf3 {[%clk 0:02:06]}  Qc5 {[%clk 0:01:44]} 19. Qd2 {[%clk 0:01:57]}  h5 {[%clk 0:01:38]} 20. Rd3 {[%clk 0:01:52]}  h4 {[%clk 0:01:38]} 21. g4 {[%clk 0:01:42]}  Bc6 {[%clk 0:01:22]} 22. Rd4 {[%clk 0:01:38]}  Bf8 {[%clk 0:00:59]} 23. a3 {[%clk 0:01:27]}  Bh6 {[%clk 0:00:52]} 24. Qd3 {[%clk 0:01:27]}  Bf4 {[%clk 0:00:45]} 25. fxe6 {[%clk 0:01:05]}  fxe6 {[%clk 0:00:43]} 26. g5 {[%clk 0:01:06]}  fxg5 {[%clk 0:00:25]} 27. Bxe6 {[%clk 0:01:04]}  Bxh2 {[%clk 0:00:20]} 28. Rc4 {[%clk 0:00:58]}  Qb6 {[%clk 0:00:16]} 29. Rb4 {[%clk 0:00:56]}  Qc5 {[%clk 0:00:12]} 30. Rc4 {[%clk 0:00:56]}  Qb6 {[%clk 0:00:12]} 31. Rb4 {[%clk 0:00:56]}  Qc5 {[%clk 0:00:13]} 32. Rc4 {[%clk 0:00:52]} 1/2-1/2


[Site "https://www.chess.com"]